fUSD/lending_fUSD_20241221
["ID","MTS","AMOUNT","RATE_DAILY","PERIOD"]
[346173039,1734763895451,-755.42,0.00022191,2]
[346173040,1734763895460,-2228.7,0.00022191,2]
[346173041,1734763895470,-500.0,0.00022191,2]
[346173042,1734763895479,-502.76,0.00022191,2]
[346173043,1734763895489,-889.66,0.00022191,2]
[346173044,1734763895498,-995.12,0.00022191,2]
[346173045,1734763895508,-999.33,0.00022191,2]
[346173046,1734763895518,-500.0,0.00022191,2]
[346173047,1734763895527,-500.0,0.00022191,2]
[346173048,1734763895537,-511.02,0.00022191,2]
[346173049,1734763895547,-500.0,0.00022191,2]
[346173050,1734763895557,-1503.52,0.00022191,2]
[346173051,1734763895567,-826.38,0.00022191,2]
[346173052,1734763895577,-500.0,0.00022191,2]
[346173053,1734763895588,-845.27,0.00022191,2]
[346173054,1734763895597,-526.88,0.00022191,2]
[346173055,1734763895607,-1849.16,0.00022191,2]
[346173056,1734763895616,-623.84,0.00022191,2]
[346173057,1734763895626,-500.0,0.00022191,2]
[346173058,1734763895635,-658.52,0.00022191,2]
[346173059,1734763895645,-606.39,0.00022191,2]
[346173060,1734763895655,-500.0,0.00022191,2]
[346173061,1734763895664,-669.5,0.00022191,2]
[346173062,1734763895674,-5337.2,0.00022191,2]
[346173063,1734763895684,-1119.97,0.00022191,2]
[346173064,1734763895694,-1317.83,0.00022191,2]
[346173065,1734763895704,-3834.33,0.00022191,2]
[346173066,1734763895714,-1210.11,0.00022191,2]
[346173067,1734763895724,-500.0,0.00022191,2]
[346173068,1734763895734,-3128.08,0.00022191,2]
[346173069,1734763895743,-500.0,0.00022191,2]
[346173070,1734763895754,-151.0,0.00022191,7]
[346173071,1734763895764,-415.05065963,0.00022191,2]
[346173072,1734763895775,-3039.32,0.00022191,2]
[346173073,1734763895785,-543.49,0.00022191,2]
[346173074,1734763895795,-1847.86,0.00022191,2]
[346173075,1734763895806,-805.91,0.00022191,2]
[346173076,1734763895815,-500.0,0.00022191,2]
[346173077,1734763895825,-623.92,0.00022191,2]
[346173078,1734763895835,-2926.41,0.00022191,2]
[346173079,1734763895846,-2527.65,0.00022191,2]
[346173080,1734763895856,-506.6,0.00022191,2]
[346173081,1734763895866,-500.0,0.00022191,2]
[346173082,1734763895877,-947.44,0.00022191,2]
[346173083,1734763895887,-500.0,0.00022191,2]
[346173084,1734763895896,-151.0,0.00022191,7]
[346173085,1734763895906,-500.0,0.00022191,2]
[346173086,1734763895916,-500.0,0.00022191,2]
[346173087,1734763895927,-500.0,0.00022191,2]
[346173088,1734763895936,-944.1,0.00022191,2]
[346173089,1734763895946,-861.65,0.00022191,2]
[346173090,1734763895956,-540.73,0.00022191,2]
[346173091,1734763895966,-572.84,0.00022191,2]
[346173092,1734763895976,-582.48,0.00022191,2]
[346173093,1734763895986,-588.74,0.00022191,2]
[346173094,1734763895998,-703.48,0.00022191,2]
[346173095,1734763896008,-500.0,0.00022191,2]
[346173096,1734763896018,-901.63,0.00022191,2]
[346173097,1734763896028,-151.0,0.00022191,7]
[346173098,1734763896039,-997.55,0.00022191,2]
[346173099,1734763896049,-799.68,0.00022191,2]
[346173100,1734763896059,-500.0,0.00022191,2]
[346173101,1734763896069,-561.21,0.00022191,2]
[346173102,1734763896078,-500.0,0.00022191,2]
[346173103,1734763896090,-1229.39,0.00022191,2]
[346173104,1734763896100,-151.0,0.00022191,7]
[346173105,1734763896109,-632.53,0.00022191,2]
[346173106,1734763896119,-1344.626509,0.00022191,7]
[346173107,1734763896129,-1931.34,0.00022191,2]
[346173108,1734763896138,-151.0,0.00022191,7]
[346173109,1734763896148,-1470.44,0.00022191,2]
[346173110,1734763896157,-500.0,0.00022191,2]
[346173111,1734763896167,-500.0,0.00022191,2]
[346173112,1734763896177,-1344.626509,0.00022191,7]
[346173113,1734763896187,-500.0,0.00022191,2]
[346173114,1734763896197,-500.0,0.00022191,2]
[346173115,1734763896207,-736.6,0.00022191,2]
[346173116,1734763896217,-703.2,0.00022191,2]
[346173117,1734763896227,-1406.58,0.00022191,2]
[346173118,1734763896236,-1544.85,0.00022191,2]
[346173119,1734763896246,-665.66,0.00022191,2]
[346173120,1734763896256,-514.28,0.00022191,2]
[346173121,1734763896273,-151.0,0.00022191,7]
[346173122,1734763896283,-151.0,0.00022191,7]
[346173123,1734763896293,-500.0,0.00022191,2]
[346173124,1734763896304,-795.88,0.00022191,2]
[346173125,1734763896314,-500.0,0.00022191,2]
[346173126,1734763896323,-1739.03,0.00022191,2]
[346173127,1734763896333,-761.21,0.00022191,2]
[346173128,1734763896343,-500.0,0.00022191,2]
[346173129,1734763896353,-1021.76,0.00022191,2]
[346173130,1734763896364,-702.19,0.00022191,2]
[346173131,1734763896374,-859.2,0.00022191,2]
[346173132,1734763896384,-1193.73,0.00022191,2]
[346173133,1734763896394,-632.4,0.00022191,2]
[346173134,1734763896404,-2294.66,0.00022191,2]
[346173135,1734763896414,-806.9,0.00022191,2]
[346173136,1734763896423,-1021.18,0.00022191,2]
[346173137,1734763896433,-1013.35,0.00022191,2]
[346173138,1734763896443,-2927.04,0.00022191,2]
[346173139,1734763896454,-632.58,0.00022191,2]
[346173140,1734763896464,-518.58,0.00022191,2]
[346173141,1734763896473,-647.88,0.00022191,2]
[346173142,1734763896483,-4561.25,0.00022191,2]
[346173143,1734763896493,-872.93,0.00022191,2]
[346173144,1734763896502,-885.58,0.00022191,2]
[346173145,1734763896512,-1603.4,0.00022191,2]
[346173146,1734763896522,-1346.86,0.00022191,2]
[346173147,1734763896533,-500.0,0.00022191,2]
[346173148,1734763896542,-500.0,0.00022191,2]
[346173149,1734763896552,-763.45,0.00022191,2]
[346173150,1734763896562,-984.85,0.00022191,2]
[346173151,1734763896572,-873.04,0.00022191,2]
[346173152,1734763896582,-500.0,0.00022191,2]
[346173153,1734763896594,-620.97,0.00022191,2]
[346173154,1734763896605,-733.9,0.00022191,2]
[346173155,1734763896616,-1060.44,0.00022191,2]
[346173156,1734763896626,-1223.12,0.00022191,2]
[346173157,1734763896637,-500.0,0.00022191,2]
[346173158,1734763896646,-633.71,0.00022191,2]
[346173159,1734763896656,-762.80471211,0.00022191,2]
[346173160,1734763897281,-301.03528789,0.00022191,2]
[346173161,1734763897301,-6034.63,0.00022191,2]
[346173162,1734763897324,-842.49,0.00022191,2]
[346173163,1734763897352,-500.0,0.00022191,2]
[346173164,1734763897382,-7492.81,0.00022191,2]
[346173165,1734763897412,-744.03,0.00022191,2]
[346173166,1734763897439,-500.0,0.00022191,2]
[346173167,1734763897448,-946.91,0.00022191,2]
[346173168,1734763897458,-512.74,0.00022191,2]
[346173169,1734763897467,-630.38,0.00022191,2]
[346173170,1734763897477,-894.54,0.00022191,2]
[346173171,1734763897487,-500.0,0.00022191,2]
[346173172,1734763897496,-513.14,0.00022191,2]
[346173173,1734763897506,-500.0,0.00022191,2]
[346173174,1734763897516,-569.68,0.00022191,2]
[346173175,1734763897525,-2074.71,0.00022191,2]
[346173176,1734763897534,-1539.27,0.00022191,2]
[346173177,1734763897544,-500.0,0.00022191,2]
[346173178,1734763897554,-860.01,0.00022191,2]
[346173179,1734763897563,-925.87,0.00022191,2]
[346173180,1734763897572,-500.0,0.00022191,2]
[346173181,1734763897581,-500.0,0.00022191,2]
[346173182,1734763897592,-2324.7,0.00022191,2]
[346173183,1734763897601,-684.38,0.00022191,2]
[346173184,1734763897611,-1111.8,0.00022191,2]
[346173185,1734763897621,-366.0,0.00022192,2]
[346173186,1734763897630,-1000.0,0.000222,2]
[346173187,1734763897641,-5000.0,0.000222,2]
[346173188,1734763897663,-5000.0,0.000222,2]
[346173189,1734763897684,-3821.575,0.00022202,2]
[346173190,1734763897705,-225.484,0.00022202,2]
[346173191,1734763897728,-1500.0,0.00022209,30]
[346173192,1734763897751,-162.58,0.00022214,2]
[346173193,1734763897774,-162.58,0.00022214,2]
[346173194,1734763897796,-162.58,0.00022214,2]
[346173195,1734763897820,-162.58,0.00022214,2]
[346173196,1734763897841,-162.58,0.00022214,2]
[346173197,1734763897863,-162.58,0.00022214,2]
[346173198,1734763897884,-162.58,0.00022214,2]
[346173199,1734763897905,-162.58,0.00022214,2]
[346173200,1734763898123,-162.58,0.00022214,2]
[346173201,1734763898133,-162.58,0.00022214,2]
[346173202,1734763898142,-500.0,0.00022215,2]
[346173203,1734763898152,-752.05,0.00022215,2]
[346173204,1734763898161,-500.0,0.00022215,2]
[346173205,1734763898171,-635.87,0.00022215,2]
[346173206,1734763898180,-558.8,0.00022215,2]
[346173207,1734763898189,-500.0,0.00022215,2]
[346173208,1734763898199,-656.13,0.00022215,2]
[346173209,1734763898208,-542.76,0.00022215,2]
[346173210,1734763898218,-561.7,0.00022215,2]
[346173211,1734763898228,-500.0,0.00022215,2]
[346173212,1734763898237,-752.18,0.00022215,2]
[346173213,1734763898247,-646.72,0.00022215,2]
[346173214,1734763898256,-1018.18,0.00022215,2]
[346173215,1734763898270,-500.0,0.00022215,2]
[346173216,1734763898279,-500.0,0.00022215,2]
[346173217,1734763898288,-603.67,0.00022215,2]
[346173218,1734763898298,-539.76,0.00022215,2]
[346173219,1734763898308,-581.25,0.00022215,2]
[346173220,1734763898317,-753.41,0.00022215,2]
[346173221,1734763898327,-500.0,0.00022215,2]
[346173222,1734763898337,-613.4,0.00022215,2]
[346173223,1734763898347,-587.49,0.00022215,2]
[346173224,1734763898358,-500.0,0.00022215,2]
[346173225,1734763898367,-500.0,0.00022215,2]
[346173226,1734763898377,-585.31,0.00022215,2]
[346173227,1734763898386,-969.91,0.00022215,2]
[346173228,1734763898395,-612.68,0.00022215,2]
[346173229,1734763898405,-500.0,0.00022215,2]
[346173230,1734763898414,-704.51,0.00022215,2]
[346173231,1734763898423,-785.75,0.00022215,2]
[346173232,1734763898432,-807.53,0.00022215,2]
[346173233,1734763898443,-949.8,0.00022215,2]
[346173234,1734763898451,-500.0,0.00022215,2]
[346173235,1734763898461,-1047.38,0.00022215,2]
[346173236,1734763898471,-500.0,0.00022215,2]
[346173237,1734763898480,-828.43,0.00022215,2]
[346173238,1734763898489,-693.55,0.00022215,2]
[346173239,1734763898498,-500.0,0.00022215,2]
[346173240,1734763898508,-987.69,0.00022215,2]
[346173241,1734763898517,-998.86,0.00022215,2]
[346173242,1734763898527,-727.86,0.00022215,2]
[346173243,1734763898536,-666.29,0.00022215,2]
[346173244,1734763898545,-760.44,0.00022215,2]
[346173245,1734763898554,-525.91,0.00022215,2]
[346173246,1734763898564,-356.36302391,0.00022215,2]
[346173247,1734763898573,-1133.35,0.00022215,2]
[346173248,1734763898583,-829.52,0.00022215,2]
[346173249,1734763898594,-1190.66,0.00022215,2]
[346173250,1734763898603,-500.0,0.00022215,2]
[346173251,1734763898612,-704.43,0.00022216,2]
[346173252,1734763898622,-500.0,0.00022216,2]
[346173253,1734763898631,-500.0,0.00022216,2]
[346173254,1734763898640,-500.0,0.00022216,2]
[346173255,1734763898649,-500.0,0.00022216,2]
[346173256,1734763898659,-500.0,0.00022216,2]
[346173257,1734763898668,-500.0,0.00022216,2]
[346173258,1734763898677,-500.0,0.00022216,2]
[346173259,1734763898686,-224.06090845,0.00022216,2]
[346173260,1734763898696,-500.0,0.00022216,2]
[346173261,1734763898705,-500.0,0.00022216,2]
[346173262,1734763898715,-500.0,0.00022216,2]
[346173263,1734763898724,-500.0,0.00022216,2]
[346173264,1734763898733,-624.56,0.00022216,2]
[346173265,1734763898743,-500.0,0.00022216,2]
[346173266,1734763898752,-636.52029357,0.00022216,2]
[346173267,1734763898761,-500.0,0.00022216,2]
[346173268,1734763898771,-500.0,0.00022216,2]
[346173269,1734763898780,-500.0,0.00022216,2]
[346173270,1734763898789,-500.0,0.00022216,2]
[346173271,1734763898798,-500.0,0.00022216,2]
[346173272,1734763898807,-500.0,0.00022216,2]
[346173273,1734763898816,-500.0,0.00022216,2]
[346173274,1734763898825,-500.0,0.00022216,2]
[346173275,1734763898835,-500.0,0.00022216,2]
[346173276,1734763898844,-500.0,0.00022216,2]
[346173277,1734763898853,-517.02426894,0.00022216,2]
[346173278,1734763898863,-500.0,0.00022216,2]
[346173279,1734763898871,-500.0,0.00022216,2]
[346173280,1734763898881,-500.0,0.00022216,2]
[346173281,1734763898890,-156.38005989,0.00022216,2]
[346173282,1734763898899,-500.0,0.00022216,2]
[346173283,1734763898908,-500.0,0.00022216,2]
[346173284,1734763898918,-500.0,0.00022216,2]
[346173285,1734763898927,-500.0,0.00022216,2]
[346173286,1734763898936,-500.0,0.00022216,2]
[346173287,1734763898946,-500.0,0.00022216,2]
[346173288,1734763898955,-796.23,0.00022216,2]
[346173289,1734763898964,-500.0,0.00022216,2]
[346173290,1734763898974,-555.46,0.00022216,2]
[346173291,1734763898983,-500.0,0.00022216,2]
[346173292,1734763898992,-500.0,0.00022216,2]
[346173293,1734763899004,-500.0,0.00022216,2]
[346173294,1734763899014,-500.0,0.00022216,2]
[346173295,1734763899024,-539.59238799,0.00022216,2]
[346173296,1734763899038,-500.0,0.00022216,2]
[346173297,1734763899047,-500.0,0.00022216,2]
[346173298,1734763899056,-500.0,0.00022216,2]
[346173299,1734763899065,-500.0,0.00022216,2]
[346173300,1734763899075,-500.0,0.00022216,2]
[346173301,1734763899083,-537.11,0.00022216,2]
[346173302,1734763899094,-210.322534,0.00022216,7]
[346173303,1734763899103,-210.322534,0.00022216,7]
[346173304,1734763899113,-811.37,0.00022216,2]
[346173305,1734763899122,-1237.38,0.00022216,2]
[346173306,1734763899131,-151.0,0.00022216,7]
[346173307,1734763899140,-1685.23,0.00022216,2]
[346173308,1734763899150,-151.0,0.00022216,7]
[346173309,1734763899159,-151.0,0.00022216,7]
[346173310,1734763899168,-1451.27,0.00022216,2]
[346173311,1734763899178,-256.47447504,0.00022216,2]
[346173312,1734763899187,-151.725674,0.00022216,7]
[346173313,1734763899196,-510.53,0.00022216,2]
[346173314,1734763899206,-1434.446381,0.00022216,7]
[346173315,1734763899215,-1183.17,0.00022216,2]
[346173316,1734763899224,-1434.446381,0.00022216,7]
[346173317,1734763899233,-870.45,0.00022216,2]
[346173318,1734763899242,-2957.21,0.00022216,2]
[346173319,1734763899251,-1132.82,0.00022216,2]
[346173320,1734763899261,-150.0,0.0002223,2]
[346173321,1734763899270,-150.0,0.0002223,2]
[346173322,1734763899282,-150.0,0.00022231,2]
[346173323,1734763899291,-150.0,0.00022232,2]
[346173324,1734763899300,-694.0,0.00022233,2]
[346173325,1734763899310,-150.0,0.00022233,2]
[346173326,1734763899319,-150.0,0.00022233,2]
[346173327,1734763899328,-150.0,0.00022237,2]
[346173328,1734763899337,-150.0,0.00022239,2]
[346173329,1734763899346,-150.0,0.00022241,2]
[346173330,1734763899357,-150.0,0.00022244,2]
[346173331,1734763899366,-150.0,0.00022245,2]
[346173332,1734763899375,-150.0,0.00022246,2]
[346173333,1734763899384,-150.0,0.00022249,2]
[346173334,1734763899393,-150.0,0.00022251,2]
[346173335,1734763899402,-803.79,0.00022253,2]
[346173336,1734763899411,-150.0,0.00022255,2]
[346173337,1734763899420,-150.0,0.00022256,2]
[346173338,1734763899429,-150.0,0.00022259,2]
[346173339,1734763899438,-150.0,0.0002226,2]
[346173340,1734763899446,-150.0,0.00022262,2]
[346173341,1734763899455,-150.0,0.00022263,2]
[346173342,1734763899465,-1000.0,0.00022264,2]
[346173343,1734763899473,-150.0,0.00022266,2]
[346173344,1734763899483,-1500.0,0.00022268,30]
[346173345,1734763899492,-150.0,0.0002227,2]
[346173346,1734763899501,-150.0,0.00022272,2]
[346173347,1734763899510,-150.0,0.00022274,2]
[346173348,1734763899519,-150.0,0.00022276,2]
[346173349,1734763899529,-150.0,0.00022277,2]
[346173350,1734763899538,-150.0,0.00022282,2]
[346173351,1734763899547,-150.0,0.00022282,2]
[346173352,1734763899556,-150.0,0.00022283,2]
[346173353,1734763899566,-150.0,0.00022286,2]
[346173354,1734763899575,-150.0,0.00022289,2]
[346173355,1734763899585,-150.0,0.00022289,2]
[346173356,1734763899596,-150.0,0.00022297,2]
[346173357,1734763899605,-150.0,0.00022301,2]
[346173358,1734763899614,-150.0,0.00022304,2]
[346173359,1734763899623,-150.0,0.00022305,2]
[346173360,1734763899632,-150.0,0.00022315,2]
[346173361,1734763899642,-150.0,0.0002232,2]
[346173362,1734763899651,-500.0,0.0002232,2]
[346173363,1734763899661,-1500.0,0.00022326,30]
[346173364,1734763899670,-150.0,0.00022328,2]
[346173365,1734763899679,-150.0,0.00022332,2]
[346173366,1734763899688,-150.0,0.00022335,2]
[346173367,1734763899697,-150.0,0.0002234,2]
[346173368,1734763899707,-150.0,0.00022341,2]
[346173369,1734763899716,-150.0,0.00022341,2]
[346173370,1734763899725,-150.0,0.00022347,2]
[346173371,1734763899735,-150.0,0.00022351,2]
[346173372,1734763899744,-150.0,0.00022351,2]
[346173373,1734763899754,-150.0,0.00022352,2]
[346173374,1734763899764,-150.0,0.00022353,2]
[346173375,1734763899773,-150.0,0.00022353,2]
[346173376,1734763899783,-150.0,0.00022353,2]
[346173377,1734763899793,-150.0,0.00022365,2]
[346173378,1734763899803,-150.0,0.00022366,2]
[346173379,1734763899812,-150.0,0.00022368,2]
[346173380,1734763899822,-150.0,0.00022369,2]
[346173381,1734763899832,-150.0,0.00022373,2]
[346173382,1734763899843,-800.0,0.00022384,2]
[346173383,1734763899852,-150.0,0.00022384,2]
[346173384,1734763899862,-1500.0,0.00022384,30]
[346173385,1734763899871,-803.79,0.0002239,2]
[346173386,1734763899881,-150.0,0.00022391,2]
[346173387,1734763899890,-150.0,0.00022393,2]
[346173388,1734763899900,-150.0,0.00022395,2]
[346173389,1734763899909,-150.0,0.00022395,2]
[346173390,1734763899918,-150.0,0.00022397,2]
[346173391,1734763899928,-150.0,0.00022399,2]
[346173392,1734763899938,-150.0,0.00022399,2]
[346173393,1734763899947,-150.0,0.000224,2]
[346173394,1734763899956,-180.8356751,0.000224,2]
[346173395,1734763899965,-150.0,0.00022403,2]
[346173396,1734763899975,-150.0,0.00022404,2]
[346173397,1734763899984,-150.0,0.00022407,2]
[346173398,1734763899993,-150.0,0.00022409,2]
[346173399,1734763900002,-150.0,0.0002241,2]
[346173400,1734763900012,-150.0,0.00022411,2]
[346173401,1734763900022,-150.0,0.00022412,2]
[346173402,1734763900032,-150.0,0.00022413,2]
[346173403,1734763900041,-150.0,0.00022413,2]
[346173404,1734763900051,-150.0,0.00022417,2]
[346173405,1734763900060,-151.33,0.00022419,2]
[346173406,1734763900069,-150.0,0.00022419,2]
[346173407,1734763900078,-150.0,0.0002242,2]
[346173408,1734763900088,-150.0,0.00022425,2]
[346173409,1734763900098,-150.0,0.00022428,2]
[346173410,1734763900107,-150.0,0.00022429,2]
[346173411,1734763900116,-924.39931969,0.0002243,10]
[346173412,1734763900126,-150.0,0.0002243,2]
[346173413,1734763900135,-150.0,0.00022431,2]
[346173414,1734763900145,-150.0,0.00022435,2]
[346173415,1734763900155,-150.0,0.00022442,2]
[346173416,1734763900164,-1500.0,0.00022442,30]
[346173417,1734763900173,-150.0,0.00022445,2]
[346173418,1734763900182,-150.0,0.00022449,2]
[346173419,1734763900192,-150.0,0.0002245,2]
[346173420,1734763900201,-150.0,0.00022456,2]
[346173421,1734763900211,-150.0,0.00022459,2]
[346173422,1734763900220,-150.0,0.0002246,2]
[346173423,1734763900229,-150.0,0.00022463,2]
[346173424,1734763900238,-282.6,0.00022464,2]
[346173425,1734763900247,-500.0,0.00022464,2]
[346173426,1734763900256,-787.7,0.00022464,2]
[346173427,1734763900269,-500.0,0.00022464,2]
[346173428,1734763900280,-722.15,0.00022464,2]
[346173429,1734763900289,-598.48,0.00022464,2]
[346173430,1734763900298,-589.12,0.00022464,2]
[346173431,1734763900307,-746.52,0.00022464,2]
[346173432,1734763900317,-500.0,0.00022464,2]
[346173433,1734763900326,-500.0,0.00022464,2]
[346173434,1734763900533,-500.0,0.00022464,2]
[346173435,1734763900542,-579.24,0.00022464,2]
[346173436,1734763900552,-709.84,0.00022464,2]
[346173437,1734763900561,-704.07,0.00022464,2]
[346173438,1734763900570,-656.8,0.00022464,2]
[346173439,1734763900579,-772.15,0.00022464,2]
[346173440,1734763900589,-500.0,0.00022464,2]
[346173441,1734763900598,-500.0,0.00022464,2]
[346173442,1734763900607,-500.0,0.00022464,2]
[346173443,1734763900617,-500.0,0.00022464,2]
[346173444,1734763900626,-500.0,0.00022464,2]
[346173445,1734763900635,-1124.77,0.00022464,2]
[346173446,1734763900645,-512.85,0.00022464,2]
[346173447,1734763900654,-1044.57,0.00022464,2]
[346173448,1734763900664,-577.68,0.00022464,2]
[346173449,1734763900673,-500.0,0.00022464,2]
[346173450,1734763900683,-500.0,0.00022464,2]
[346173451,1734763900693,-687.33,0.00022464,2]
[346173452,1734763900703,-727.24,0.00022464,2]
[346173453,1734763900712,-500.0,0.00022464,2]
[346173454,1734763900722,-293.43433204,0.00022464,2]
[346173455,1734763900732,-671.56,0.00022464,2]
[346173456,1734763900741,-573.05699586,0.00022464,2]
[346173457,1734763900750,-604.9,0.00022464,2]
[346173458,1734763900760,-500.0,0.00022464,2]
[346173459,1734763900769,-503.11,0.00022464,2]
[346173460,1734763900779,-500.0,0.00022464,2]
[346173461,1734763900788,-648.38,0.00022464,2]
[346173462,1734763900798,-534.85,0.00022464,2]
[346173463,1734763900807,-500.0,0.00022464,2]
[346173464,1734763900818,-578.88,0.00022464,2]
[346173465,1734763900828,-500.0,0.00022464,2]
[346173466,1734763900839,-546.17,0.00022464,2]
[346173467,1734763900848,-500.0,0.00022464,2]
[346173468,1734763900858,-520.15,0.00022464,2]
[346173469,1734763900867,-435.8659459,0.00022464,2]
[346173470,1734763900877,-628.26,0.00022464,2]
[346173471,1734763900887,-529.73,0.00022464,2]
[346173472,1734763900896,-1052.04,0.00022464,2]
[346173473,1734763900905,-607.01,0.00022464,2]
[346173474,1734763900914,-752.7,0.00022464,2]
[346173475,1734763900923,-944.17,0.00022464,2]
[346173476,1734763900933,-716.64,0.00022464,2]
[346173477,1734763900943,-829.23,0.00022464,2]
[346173478,1734763900952,-539.95,0.00022464,2]
[346173479,1734763900961,-739.19,0.00022464,2]
[346173480,1734763900971,-783.63,0.00022464,2]
[346173481,1734763900980,-500.0,0.00022464,2]
[346173482,1734763900990,-500.0,0.00022464,2]
[346173483,1734763900999,-1210.89,0.00022464,2]
[346173484,1734763901009,-512.97,0.00022464,2]
[346173485,1734763901019,-1023.43,0.00022464,2]
[346173486,1734763901028,-500.0,0.00022464,2]
[346173487,1734763901037,-658.92,0.00022464,2]
[346173488,1734763901046,-985.94,0.00022464,2]
[346173489,1734763901055,-522.13,0.00022465,2]
[346173490,1734763901064,-526.95,0.00022465,2]
[346173491,1734763901073,-753.3,0.00022465,2]
[346173492,1734763901082,-500.0,0.00022465,2]
[346173493,1734763901092,-500.0,0.00022465,2]
[346173494,1734763901101,-817.72,0.00022465,2]
[346173495,1734763901111,-500.0,0.00022465,2]
[346173496,1734763901120,-500.0,0.00022465,2]
[346173497,1734763901129,-619.92,0.00022465,2]
[346173498,1734763901138,-326.11978337,0.00022465,2]
[346173499,1734763901148,-674.16,0.00022465,2]
[346173500,1734763901157,-500.0,0.00022465,2]
[346173501,1734763901166,-781.83,0.00022465,2]
[346173502,1734763901175,-500.0,0.00022465,2]
[346173503,1734763901184,-500.0,0.00022465,2]
[346173504,1734763901193,-646.79,0.00022465,2]
[346173505,1734763901203,-1000.0,0.00022465,30]
[346173506,1734763901212,-759.27,0.00022465,2]
[346173507,1734763901221,-535.16,0.00022465,2]
[346173508,1734763901230,-500.0,0.00022465,2]
[346173509,1734763901239,-1140.19,0.00022465,2]
[346173510,1734763901248,-504.11,0.00022465,2]
[346173511,1734763901258,-713.15,0.00022465,2]
[346173512,1734763901270,-721.59,0.00022465,2]
[346173513,1734763901279,-500.0,0.00022465,2]
[346173514,1734763901289,-500.0,0.00022465,2]
[346173515,1734763901298,-500.0,0.00022465,2]
[346173516,1734763901308,-1544.805157,0.00022465,2]
[346173517,1734763901317,-151.663805,0.00022465,7]
[346173518,1734763901327,-500.0,0.00022465,2]
[346173519,1734763901336,-500.0,0.00022465,2]
[346173520,1734763901349,-500.0,0.00022465,2]
[346173521,1734763901358,-151.0,0.00022465,7]
[346173522,1734763901368,-321.859181,0.00022465,7]
[346173523,1734763901377,-925.78,0.00022465,2]
[346173524,1734763901386,-321.859181,0.00022465,7]
[346173525,1734763901395,-1057.2639,0.00022465,2]
[346173526,1734763901404,-500.0,0.00022465,2]
[346173527,1734763901414,-549.38,0.00022465,2]
[346173528,1734763901423,-500.0,0.00022465,2]
[346173529,1734763901432,-500.0,0.00022465,2]
[346173530,1734763901441,-575.46,0.00022465,2]
[346173531,1734763901450,-151.0,0.00022465,7]
[346173532,1734763901459,-792.53,0.00022465,2]
[346173533,1734763901468,-500.0,0.00022465,2]
[346173534,1734763901477,-500.0,0.00022465,2]
[346173535,1734763901486,-635.22,0.00022465,2]
[346173536,1734763901495,-880.04,0.00022465,2]
[346173537,1734763901504,-151.0,0.00022465,7]
[346173538,1734763901513,-151.0,0.00022465,7]